fUSD/lending_fUSD_20240414
["ID","MTS","AMOUNT","RATE_DAILY","PERIOD"]
[322594552,1713097840985,-889.39757815,0.0003288,2]
[322594553,1713097840994,-889.39757815,0.0003288,2]
[322594554,1713097841003,-889.39757815,0.0003288,2]
[322594555,1713097841013,-889.39757815,0.0003288,2]
[322594556,1713097841022,-889.39757815,0.0003288,2]
[322594557,1713097841031,-889.39757815,0.0003288,2]
[322594558,1713097841041,-889.39757815,0.0003288,2]
[322594559,1713097841051,-889.39757815,0.0003288,2]
[322594560,1713097841060,-889.39757815,0.0003288,2]
[322594561,1713097841069,-889.89,0.0003288,2]
[322594562,1713097841079,-171.91123781,0.0003288,2]
[322594563,1713097841088,-171.91123781,0.0003288,2]
[322594564,1713097841097,-171.91123781,0.0003288,2]
[322594565,1713097841106,-171.91123781,0.0003288,2]
[322594566,1713097841116,-171.91123781,0.0003288,2]
[322594567,1713097841125,-171.91123781,0.0003288,2]
[322594568,1713097841134,-171.91123781,0.0003288,2]
[322594569,1713097841144,-171.91123781,0.0003288,2]
[322594570,1713097841154,-171.91123781,0.0003288,2]
[322594571,1713097841164,-171.91123781,0.0003288,2]
[322594572,1713097841174,-171.91123781,0.0003288,2]
[322594573,1713097841184,-171.91123781,0.0003288,2]
[322594574,1713097841193,-171.91123781,0.0003288,2]
[322594575,1713097841202,-171.91123781,0.0003288,2]
[322594576,1713097841211,-171.91123781,0.0003288,2]
[322594577,1713097841223,-171.91123781,0.0003288,2]
[322594578,1713097841234,-171.91123781,0.0003288,2]
[322594579,1713097841244,-171.91123781,0.0003288,2]
[322594580,1713097841253,-171.91123781,0.0003288,2]
[322594581,1713097841263,-172.41,0.0003288,2]
[322594582,1713097841272,-794.09318097,0.0003288,2]
[322594583,1713097841284,-794.09318097,0.0003288,2]
[322594584,1713097841295,-794.09318097,0.0003288,2]
[322594585,1713097841307,-794.09318097,0.0003288,2]
[322594586,1713097841317,-794.09318097,0.0003288,2]
[322594587,1713097841327,-794.09318097,0.0003288,2]
[322594588,1713097841336,-794.09318097,0.0003288,2]
[322594589,1713097841345,-794.09318097,0.0003288,2]
[322594590,1713097841355,-794.09318097,0.0003288,2]
[322594591,1713097841364,-794.09318097,0.0003288,2]
[322594592,1713097841374,-794.09318097,0.0003288,2]
[322594593,1713097841383,-794.09318097,0.0003288,2]
[322594594,1713097841392,-794.09318097,0.0003288,2]
[322594595,1713097841402,-794.09318097,0.0003288,2]
[322594596,1713097841412,-794.09318097,0.0003288,2]
[322594597,1713097841420,-794.09318097,0.0003288,2]
[322594598,1713097841429,-794.09318097,0.0003288,2]
[322594599,1713097841439,-794.09318097,0.0003288,2]
[322594600,1713097841448,-794.09318097,0.0003288,2]
[322594601,1713097841457,-794.59,0.0003288,2]
[322594602,1713097841466,-1586.68562945,0.000329,3]
[322594603,1713097841477,-1000.0,0.00033,5]
[322594604,1713097841487,-5000.0,0.00033,15]
[322594605,1713097841497,-356.93,0.00033,2]
[322594606,1713097841508,-445.33,0.00033,2]
[322594607,1713097841517,-15040.95756433,0.00033,2]
[322594608,1713097841527,-1500.0,0.00033,3]
[322594609,1713097841536,-664.0,0.00033068,2]
[322594610,1713097841545,-536.0,0.00033068,2]
[322594611,1713097841555,-196.84,0.00033165,2]
[322594612,1713097841565,-152.68,0.00033165,2]
[322594613,1713097841575,-572.0,0.00033568,2]
[322594614,1713097841584,-150.0,0.00033742,2]
[322594615,1713097841595,-157.04142,0.00033798,30]
[322594616,1713097841604,-185.0,0.0003395,20]
[322594617,1713097841613,-150.0,0.00033999,30]
[322594618,1713097841622,-150.0,0.00033999,30]
[322594619,1713097841631,-150.0,0.00033999,30]
[322594620,1713097841640,-50000.0,0.00034,4]
[322594621,1713097841651,-696390.58972385,0.00034,15]
[322594622,1713097841661,-1000.0,0.00034,5]
[322594623,1713097841670,-157.04142,0.00034198,31]
[322594624,1713097841679,-1000.0,0.00034247,2]
[322594625,1713097841689,-150.0,0.00034359,30]
[322594626,1713097841698,-150.0,0.00034359,30]
[322594627,1713097841707,-150.0,0.00034359,30]
[322594628,1713097841717,-111361.28510563,0.0003436,7]
[322594629,1713097841726,-664.0,0.00034438,2]
[322594630,1713097841736,-157.04142,0.00034498,32]
[322594631,1713097841746,-1000.0,0.000345,2]
[322594632,1713097841755,-1979.33517126,0.00034555,3]
[322594633,1713097841766,-150.0,0.00034607,2]
[322594634,1713097841776,-157.04142,0.00034798,33]
[322594635,1713097841786,-3808.454423,0.000348,14]
[322594636,1713097841796,-1000.0,0.000349,2]
[322594637,1713097841806,-50000.0,0.00035,5]
[322594638,1713097841815,-5000.0,0.00035,4]
[322594639,1713097841825,-33990.14745799,0.00035,4]
[322594640,1713097841835,-273.15145664,0.00035,4]
[322594641,1713097841844,-1834.52789657,0.00035,4]
[322594642,1713097841854,-157.33487293,0.00035,30]
[322594643,1713097841863,-329.86621818,0.00035,120]
[322594644,1713097841873,-2575.96514984,0.00035,7]
[322594645,1713097841882,-19453.22092378,0.00035,2]
[322594646,1713097841892,-15693.10702785,0.00035,4]
[322594647,1713097841905,-1000.0,0.00035,7]
[322594648,1713097841916,-14523.29101928,0.00035,2]
[322594649,1713097841925,-1550.0,0.00035,3]
[322594650,1713097841935,-500.0,0.00035,7]
[322594651,1713097841945,-152.24,0.00035225,2]
[322594652,1713097841956,-2330.24,0.00035288,15]
[322594653,1713097841965,-277.23955994,0.00035374,7]
[322594654,1713097841975,-1091.1,0.00035455,2]
[322594655,1713097841985,-150.0,0.00035472,2]
[322594656,1713097841995,-157.04142,0.00035498,34]
[322594657,1713097842005,-25655.355043,0.00035546,2]
[322594658,1713097842015,-150.0,0.00035552,2]
[322594659,1713097842025,-150.0,0.00035552,2]
[322594660,1713097842035,-289.95,0.00035552,2]
[322594661,1713097842045,-214.0,0.00035552,2]
[322594662,1713097842055,-355.0,0.00035552,2]
[322594663,1713097842065,-968.0,0.00035552,2]
[322594664,1713097842075,-215.164,0.00035552,2]
[322594665,1713097842085,-1391.0,0.00035552,2]
[322594666,1713097842094,-1261.0,0.00035552,2]
[322594667,1713097842104,-2105.98448499,0.000356,30]
[322594668,1713097842113,-3000.0,0.000356,2]
[322594669,1713097842123,-1019.200606,0.00035647,5]
[322594670,1713097842132,-1011.22096569,0.00035647,5]
[322594671,1713097842142,-5320.0,0.000357,2]
[322594672,1713097842155,-22419.00863156,0.0003576,4]
[322594673,1713097842165,-157.04142,0.00035798,35]
[322594674,1713097842175,-664.0,0.00035808,7]
[322594675,1713097842185,-572.0,0.00035832,2]
[322594676,1713097842194,-50000.0,0.00036,16]
[322594677,1713097842204,-1000.0,0.00036,7]
[322594678,1713097842214,-612.47003388,0.00036,2]
[322594679,1713097842227,-400.0,0.00036082,3]
[322594680,1713097842237,-3000.0,0.0003615,30]
[322594681,1713097842246,-151.0,0.0003615,7]
[322594682,1713097842256,-244.296489,0.0003615,7]
[322594683,1713097842266,-151.0,0.0003615,7]
[322594684,1713097842276,-167.186685,0.0003615,7]
[322594685,1713097842285,-151.933996,0.0003615,7]
[322594686,1713097842295,-151.0,0.0003615,7]
[322594687,1713097842306,-153.142966,0.0003615,7]
[322594688,1713097842316,-200.0,0.00036192,2]
[322594689,1713097842326,-157.04142,0.00036198,36]
[322594690,1713097842335,-999.66,0.000362,2]
[322594691,1713097842344,-302.46,0.000362,2]
[322594692,1713097842354,-4079.77424,0.00036274,7]
[322594693,1713097842363,-363.235926,0.00036274,7]
[322594694,1713097842373,-1406.64353706,0.000363,2]
[322594695,1713097842382,-150.0,0.00036337,2]
[322594696,1713097842392,-200.0,0.00036364,7]
[322594697,1713097842404,-200.0,0.00036364,7]
[322594698,1713097842413,-200.0,0.00036364,7]
[322594699,1713097842423,-200.0,0.00036364,7]
[322594700,1713097842431,-200.0,0.00036364,7]
[322594701,1713097842441,-200.0,0.00036364,7]
[322594702,1713097842450,-150.0,0.00036373,30]
[322594703,1713097842459,-150.0,0.00036373,30]
[322594704,1713097842469,-542.60175026,0.00036374,5]
[322594705,1713097842479,-150867.95914969,0.00036374,2]
[322594706,1713097842489,-114546.57606492,0.00036374,2]
[322594707,1713097842498,-10249.63326842,0.00036374,3]
[322594708,1713097842508,-3357.71883332,0.00036374,2]
[322594709,1713097842517,-675.52856393,0.00036374,10]
[322594710,1713097842527,-595.67450542,0.00036374,6]
[322594711,1713097842538,-12132.01641964,0.00036374,2]
[322594712,1713097842548,-10406.70917945,0.00036374,2]
[322594713,1713097842557,-56331.32960523,0.00036374,10]
[322594714,1713097842566,-509.27078102,0.00036374,7]
[322594715,1713097842575,-133588.29715961,0.00036374,2]
[322594716,1713097842585,-397.7604959,0.00036374,7]
[322594717,1713097842594,-29269.72086411,0.00036374,15]
[322594719,1713097842603,-22176.61469261,0.00036374,2]
[322594721,1713097842613,-14716.6852727,0.00036374,2]
[322594722,1713097842622,-193.10608388,0.00036374,15]
[322594723,1713097842632,-2143.31291769,0.00036374,10]
[322594724,1713097842642,-571.57625107,0.00036374,5]
[322594725,1713097842653,-828.05913282,0.00036374,10]
[322594727,1713097842662,-12488.72711038,0.00036374,2]
[322594728,1713097842671,-14381.94638183,0.00036374,3]
[322594729,1713097842680,-4000.0,0.00036374,3]
[322594730,1713097842689,-26152.88981258,0.00036374,5]
[322594731,1713097842700,-500.0,0.00036374,10]
[322594733,1713097842710,-16300.25517211,0.00036374,2]
[322594734,1713097842720,-10423.8098237,0.00036374,2]
[322594735,1713097842729,-155.69237347,0.00036374,2]
[322594736,1713097842739,-164990.7177396,0.00036374,2]
[322594737,1713097842749,-14554.18995939,0.00036374,2]
[322594738,1713097842758,-3547.78476599,0.00036374,15]
[322594739,1713097842767,-1239.59529615,0.00036374,4]
[322594740,1713097842777,-946.92764814,0.00036374,4]
[322594741,1713097842788,-10332.14647854,0.00036374,2]
[322594742,1713097842797,-14248.98325068,0.00036374,2]
[322594743,1713097842806,-14309.31759222,0.00036374,2]
[322594744,1713097842815,-234.63242382,0.00036374,5]
[322594746,1713097842825,-9861.43014922,0.00036374,15]
[322594747,1713097842834,-149453.09889355,0.00036374,2]
[322594748,1713097842844,-2720.72148304,0.00036374,7]
[322594749,1713097842853,-20697.17650864,0.00036374,2]
[322594751,1713097842862,-27080.33595335,0.00036374,2]
[322594752,1713097842872,-406740.71374096,0.00036374,2]
[322594753,1713097842881,-10221.66876629,0.00036374,2]
[322594754,1713097842890,-26864.22626519,0.00036374,2]
[322594755,1713097842901,-183.32688044,0.00036374,7]
[322594756,1713097842910,-1120.64515478,0.00036374,10]
[322594757,1713097842919,-14823.78316089,0.00036374,2]
[322594758,1713097842930,-21400.36163323,0.00036374,2]
[322594759,1713097842939,-2026.93484754,0.00036374,10]
[322594760,1713097842948,-3281.0310742,0.00036374,7]
[322594761,1713097842958,-527.68943673,0.00036374,5]
[322594762,1713097842968,-741.93971446,0.00036374,10]
[322594763,1713097842978,-263.06053332,0.00036374,10]
[322594764,1713097842987,-2925.47049298,0.00036374,2]
[322594765,1713097842997,-275.0,0.00036374,14]
[322594766,1713097843006,-9057.42657939,0.00036374,2]
[322594767,1713097843015,-11687.38969489,0.00036374,2]
[322594768,1713097843033,-23274.24144458,0.00036374,2]
[322594769,1713097843043,-246566.43108937,0.00036374,2]
[322594770,1713097843182,-151.75,0.00029,2]
[322594771,1713097843192,-3067.97035,0.00036374,2]
[322594773,1713097844052,-151.75,0.00029,2]
[322594774,1713097844062,-151.75,0.00029,2]
[322594775,1713097844071,-11203.77604648,0.00036374,2]
[322594776,1713097844088,-726.83576,0.00036374,2]
[322594777,1713097844149,-151.75,0.00029,2]
[322594778,1713097844161,-1619.59039233,0.00036374,2]
[322594779,1713097845188,-151.75,0.00029,2]
[322594780,1713097845198,-151.75,0.00029,2]
[322594781,1713097845207,-151.75,0.00029,2]
[322594782,1713097845220,-151.75,0.00029,2]
[322594783,1713097845229,-151.75,0.00029,2]
[322594784,1713097845239,-151.75,0.00029,2]
[322594785,1713097845248,-156.286,0.00032552,2]
[322594786,1713097845259,-430.626,0.00032552,2]
[322594787,1713097845268,-239975.38459282,0.00036374,2]
[322594788,1713097845277,-211.15041514,0.00036374,7]
[322594789,1713097845287,-18987.03563501,0.00036374,3]
[322594790,1713097845297,-642.13518236,0.00036374,14]
[322594791,1713097845307,-6528.52001372,0.00036374,4]
[322594792,1713097845318,-3843.07740348,0.00036374,3]
[322594793,1713097845328,-1760.75450467,0.00036374,2]
[322594794,1713097845338,-1521.64255758,0.00036374,20]
[322594795,1713097845347,-208.28362471,0.00036374,7]
[322594796,1713097845357,-29653.85151388,0.00036374,4]
[322594797,1713097845366,-205.26272692,0.00036374,5]
[322594798,1713097845375,-11534.2087434,0.00036374,2]
[322594799,1713097845385,-218.8551412,0.00036374,15]
[322594800,1713097845395,-13000.0,0.00036374,2]
[322594801,1713097845405,-13681.92164015,0.00036374,2]
[322594802,1713097845415,-23100.66533494,0.00036374,2]
[322594803,1713097845424,-5001.52147279,0.00036374,2]
[322594804,1713097845434,-150.0,0.00036374,2]
[322594805,1713097845444,-250.0,0.00036374,2]
[322594806,1713097845455,-250.0,0.00036374,7]
[322594807,1713097845465,-250.0,0.00036374,8]
[322594808,1713097845474,-250.0,0.00036374,9]
[322594809,1713097845484,-250.0,0.00036374,10]
[322594810,1713097845494,-250.0,0.00036374,11]
[322594811,1713097845503,-250.0,0.00036374,12]
[322594812,1713097845512,-250.0,0.00036374,13]
[322594813,1713097845521,-250.0,0.00036374,14]
[322594814,1713097845530,-150.0,0.00036374,2]
[322594815,1713097845539,-200.0,0.00036374,2]
[322594816,1713097845549,-338.8101674,0.00036374,2]
[322594817,1713097845558,-221.82553151,0.00036374,2]
[322594818,1713097845568,-2311.91,0.00036374,4]
[322594819,1713097845577,-1001.82471946,0.00036374,2]
[322594820,1713097845586,-159.55277193,0.00036374,2]
[322594821,1713097845596,-1039.49477364,0.00036374,2]
[322594822,1713097845605,-175.80716826,0.00036374,2]
[322594823,1713097845614,-61335.98874799,0.00036374,2]
[322594824,1713097845624,-846.22772453,0.00036374,2]
[322594825,1713097845633,-1016.84207111,0.00036374,2]
[322594826,1713097845642,-185.74367022,0.00036374,2]
[322594827,1713097845651,-479.32718789,0.00036374,2]
[322594828,1713097845661,-7221.42186672,0.00036374,2]
[322594829,1713097845670,-643.0,0.00036374,2]
[322594830,1713097845789,-944.20477156,0.00036374,2]
[322594831,1713097845798,-557.69882794,0.00036374,2]
[322594832,1713097845808,-169.94185461,0.00036374,2]
[322594833,1713097845817,-933.96674604,0.00036374,2]
[322594834,1713097845827,-550.0,0.00036374,2]
[322594835,1713097845836,-981.22470042,0.00036374,2]
[322594836,1713097845846,-500.0,0.00036374,2]
[322594837,1713097845855,-1005.88499259,0.00036374,2]
[322594838,1713097845864,-548.26409348,0.00036374,2]
[322594839,1713097845873,-150.0,0.00036374,2]
[322594840,1713097845883,-635.86628345,0.00036374,2]
[322594841,1713097845892,-609.88094156,0.00036374,2]
[322594842,1713097845902,-209.11986208,0.00036374,2]
[322594843,1713097845912,-437.57437065,0.00036374,2]
[322594844,1713097845921,-1039.06979151,0.00036374,2]
[322594845,1713097845932,-564.12563386,0.00036374,2]
[322594846,1713097845942,-7564.18857646,0.00036374,2]
[322594847,1713097845952,-234.36226231,0.00036374,2]
[322594848,1713097845961,-524.79600915,0.00036374,2]
[322594849,1713097845971,-888.42848911,0.00036374,2]
[322594850,1713097845981,-468.85682959,0.00036374,2]
[322594851,1713097845990,-385.31431586,0.00036374,2]
[322594852,1713097846001,-240.63718346,0.00036374,2]
[322594853,1713097846010,-317.14414367,0.00036374,2]
[322594854,1713097846021,-533.2708575,0.00036374,2]
[322594855,1713097846030,-354.96267337,0.00036374,2]
[322594856,1713097846039,-593.38121782,0.00036374,2]
[322594857,1713097846048,-337.85027147,0.00036374,2]
[322594858,1713097846057,-1006.28320373,0.00036374,2]
[322594859,1713097846067,-214.39129213,0.00036374,2]
[322594860,1713097846076,-1005.40827625,0.00036374,2]
[322594861,1713097846085,-1235.8,0.00036374,15]
[322594862,1713097846094,-7508.12226322,0.00036374,2]
[322594863,1713097846104,-1000.0,0.00036374,2]
[322594864,1713097846113,-1000.0,0.00036374,2]
[322594865,1713097846122,-1000.0,0.00036374,2]
[322594866,1713097846132,-1000.0,0.00036374,2]
[322594867,1713097846141,-1000.0,0.00036374,2]
[322594868,1713097846150,-1000.0,0.00036374,2]
[322594869,1713097846160,-155.63354506,0.00036374,17]
[322594870,1713097846169,-151.0,0.00036374,7]
[322594871,1713097846177,-151.0,0.00036374,7]
[322594872,1713097846186,-151.0,0.00036374,7]
[322594873,1713097846196,-151.0,0.00036374,7]
[322594874,1713097846206,-151.0,0.00036374,7]
[322594875,1713097846218,-151.0,0.00036374,7]
[322594876,1713097846228,-151.0,0.00036374,7]
[322594877,1713097846238,-152.983343,0.00036374,7]
[322594878,1713097846247,-151.0,0.00036374,7]
[322594879,1713097846258,-152.651278,0.00036374,7]
[322594880,1713097846268,-355.899858,0.00036374,7]
[322594881,1713097846277,-151.0,0.00036374,7]
[322594882,1713097846288,-355.899858,0.00036374,7]
[322594883,1713097846298,-151.0,0.00036374,7]
[322594884,1713097846308,-164.915614,0.00036374,7]
[322594885,1713097846318,-164.915614,0.00036374,7]
[322594886,1713097846327,-151.0,0.00036374,7]
[322594887,1713097846336,-151.0,0.00036374,7]
[322594888,1713097846345,-151.0,0.00036374,7]
[322594889,1713097846354,-151.0,0.00036374,7]
[322594890,1713097846363,-151.0,0.00036374,7]
[322594891,1713097846372,-151.0,0.00036374,7]
[322594892,1713097846381,-151.0,0.00036374,7]
[322594893,1713097846390,-151.0,0.00036374,7]
[322594894,1713097846399,-229.426931,0.00036374,7]
[322594895,1713097846411,-151.0,0.00036374,7]
[322594896,1713097846421,-229.426931,0.00036374,7]
[322594897,1713097846430,-151.0,0.00036374,7]
[322594898,1713097846439,-151.883449,0.00036374,7]
[322594899,1713097846448,-151.0,0.00036374,7]
[322594900,1713097846457,-151.0,0.00036374,7]
[322594901,1713097846466,-151.0,0.00036374,7]
[322594902,1713097846475,-1604.15536046,0.00036374,5]
[322594903,1713097846484,-500.0,0.00036374,2]
[322594904,1713097846493,-595.30948057,0.00036374,2]
[322594905,1713097846502,-151.0,0.00036374,7]
[322594906,1713097846511,-151.0,0.00036374,7]
[322594907,1713097846520,-151.0,0.00036374,7]
[322594908,1713097846529,-151.0,0.00036374,7]
[322594909,1713097846539,-540.174572,0.00036374,7]
[322594910,1713097846548,-221.381863,0.00036374,7]
[322594911,1713097846557,-540.174572,0.00036374,7]
[322594912,1713097846566,-151.0,0.00036374,7]
[322594913,1713097846575,-221.381863,0.00036374,7]
[322594914,1713097846584,-456.51002,0.00036374,2]
[322594915,1713097846593,-439.05708,0.00036374,7]
[322594916,1713097846602,-456.51002,0.00036374,2]
[322594917,1713097846611,-439.05708,0.00036374,7]
[322594918,1713097846620,-151.0,0.00036374,7]
[322594919,1713097846629,-151.0,0.00036374,7]
[322594920,1713097846637,-151.0,0.00036374,7]
[322594921,1713097846647,-151.0,0.00036374,7]
[322594922,1713097846661,-151.0,0.00036374,7]
[322594923,1713097846670,-151.0,0.00036374,7]
[322594924,1713097846679,-258.098084,0.00036374,7]
[322594925,1713097846688,-151.0,0.00036374,7]
[322594926,1713097846697,-153.604901,0.00036374,7]
[322594927,1713097846706,-209.798588,0.00036374,7]
[322594928,1713097846715,-177.952692,0.00036374,7]
[322594929,1713097846725,-177.952692,0.00036374,7]
[322594930,1713097846735,-799.948108,0.00036374,7]
[322594931,1713097846744,-151.0,0.00036374,7]
[322594932,1713097846754,-799.948108,0.00036374,7]
[322594933,1713097846763,-153.145968,0.00036374,7]
[322594934,1713097846773,-151.0,0.00036374,7]
[322594935,1713097846782,-225.265027,0.00036374,7]
[322594936,1713097846791,-151.0,0.00036374,7]
[322594937,1713097846800,-426.967051,0.00036374,7]
[322594938,1713097846810,-151.0,0.00036374,7]
[322594939,1713097846820,-225.265027,0.00036374,7]
[322594940,1713097846830,-151.0,0.00036374,7]
[322594941,1713097846839,-426.967051,0.00036374,7]
[322594942,1713097846848,-167.211154,0.00036374,7]
[322594943,1713097846858,-151.0,0.00036374,7]
[322594944,1713097846867,-151.0,0.00036374,7]
[322594945,1713097846876,-151.0,0.00036374,7]
[322594946,1713097846886,-167.211154,0.00036374,7]
[322594947,1713097846896,-151.0,0.00036374,7]
[322594948,1713097846907,-151.0,0.00036374,7]
[322594949,1713097846916,-151.0,0.00036374,7]
[322594950,1713097846925,-151.0,0.00036374,7]
[322594951,1713097846935,-1987.697258,0.00036374,7]
[322594952,1713097846944,-746.958894,0.00036374,7]
[322594953,1713097846953,-212.888675,0.00036374,7]
[322594954,1713097846963,-746.958894,0.00036374,7]
[322594955,1713097846973,-212.888675,0.00036374,7]
[322594956,1713097846982,-151.0,0.00036374,7]
[322594957,1713097846992,-1987.697258,0.00036374,7]
[322594958,1713097847001,-151.0,0.00036374,7]
[322594959,1713097847010,-151.0,0.00036374,7]
[322594960,1713097847019,-155.064629,0.00036374,7]
[322594961,1713097847028,-320.662211,0.00036374,7]
[322594962,1713097847037,-151.0,0.00036374,7]
[322594963,1713097847046,-218.222334,0.00036374,7]
[322594964,1713097847055,-320.662211,0.00036374,7]
[322594965,1713097847064,-151.0,0.00036374,7]
[322594966,1713097847074,-218.222334,0.00036374,7]
[322594967,1713097847083,-151.0,0.00036374,7]
[322594968,1713097847092,-151.0,0.00036374,7]
[322594969,1713097847101,-281.914586,0.00036374,7]
[322594970,1713097847110,-151.0,0.00036374,7]
[322594971,1713097847120,-281.914586,0.00036374,7]
[322594972,1713097847129,-151.0,0.00036374,7]
[322594973,1713097847138,-151.0,0.00036374,7]
[322594974,1713097847147,-151.0,0.00036374,7]
[322594975,1713097847160,-151.0,0.00036374,7]
[322594976,1713097847169,-151.0,0.00036374,7]
[322594977,1713097847178,-151.0,0.00036374,7]
[322594978,1713097847187,-151.0,0.00036374,7]
[322594979,1713097847196,-151.471127,0.00036374,7]
[322594980,1713097847206,-151.0,0.00036374,7]
[322594981,1713097847215,-600.0,0.000364,120]
[322594982,1713097847226,-275.5,0.000364,2]
[322594983,1713097847236,-1894.556,0.00036436,30]
[322594984,1713097847245,-157.04142,0.00036498,37]
[322594985,1713097847255,-154.76,0.0003653,2]
[322594986,1713097847264,-157.04142,0.00036798,38]
[322594987,1713097847275,-151.238,0.000368,7]
[322594988,1713097847284,-2100.0,0.000368,7]
[322594989,1713097847294,-150.0,0.000368,7]
[322594990,1713097847303,-757.0,0.000369,2]
[322594991,1713097847313,-222.0,0.000369,2]
[322594992,1713097847322,-351.0,0.000369,2]
[322594993,1713097847331,-151.0,0.00036934,4]
[322594994,1713097847340,-50000.0,0.00037,17]
[322594995,1713097847349,-10407.10976818,0.00037,6]
[322594996,1713097847358,-57318.38716375,0.00037,4]
[322594997,1713097849467,-522.8945514,0.00028999,2]
[322594998,1713097849477,-150.01,0.00028999,2]
[322594999,1713097849487,-260.55490322,0.00028999,2]
[322595000,1713097849497,-5835.31046315,0.00028999,2]
[322595001,1713097849507,-151.75,0.00029,2]
[322595002,1713097849517,-151.75,0.00029,2]
[322595003,1713097849527,-151.75,0.00029,2]
[322595004,1713097849537,-151.75,0.00029,2]
[322595005,1713097849546,-151.75,0.00029,2]
[322595006,1713097849556,-151.75,0.00029,2]
[322595007,1713097849566,-151.75,0.00029,2]
[322595008,1713097849575,-151.75,0.00029,2]
[322595009,1713097849585,-151.75,0.00029,2]
[322595010,1713097849595,-151.75,0.00029,2]
[322595011,1713097849604,-151.75,0.00029,2]
[322595012,1713097849614,-151.75,0.00029,2]
[322595013,1713097849625,-151.75,0.00029,2]
[322595014,1713097849944,-550.379,0.00032552,2]
[322595015,1713097849953,-541.0,0.00035552,2]
[322595016,1713097849962,-183491.19349237,0.00037,4]
[322595017,1713097849974,-644.58765686,0.00037,4]
[322595018,1713097850112,-151.75,0.00029,2]
[322595019,1713097850121,-151.75,0.00029,2]
[322595020,1713097850131,-59.31719994,0.00030411,2]
[322595021,1713097889022,170.29282038,5e-05,2]
[322595022,1713097930505,226.05906621,5e-05,2]
[322595023,1713097930526,134.77271184,5e-05,2]
[322595024,1713097946402,360.83177805,5e-05,2]
[322595025,1713097963967,341.31044949,5e-05,2]
[322595026,1713098345468,748.77932256,0.00018808,2]
[322595027,1713098380763,408.03329043,0.00018808,2]
[322595028,1713098383730,952.68711223,0.00017868,2]
[322595029,1713098387224,1053.5853354,0.00018808,2]
[322595030,1713098387246,4000.0,0.00018808,2]
[322595031,1713098387266,2437.89602347,0.00018808,2]
[322595032,1713098389299,1035.18121822,0.00018808,2]
[322595033,1713098393431,365.3656884,0.00018808,2]
[322595034,1713098394786,161.55706991,0.00018808,2]
[322595035,1713098394807,69.89310342,0.00018808,2]
[322595036,1713098396882,865.36661426,0.00018808,2]
[322595037,1713098398344,155.0,0.00018808,2]
[322595038,1713098399982,323.54057448,0.00018808,2]
[322595039,1713098402382,155.0,0.00018808,2]
[322595040,1713098403129,1995.09787329,0.00018808,2]
[322595041,1713098403232,436.10183455,0.00018808,2]
[322595042,1713098403256,4000.0,0.00018808,2]
[322595043,1713098403276,3055.37952432,0.00018808,2]
[322595044,1713098403807,944.62047568,0.00017868,2]
[322595045,1713098403828,8.06663655,0.00017868,2]
[322595046,1713098405122,588.11489598,0.00018808,2]
[322595047,1713098407445,365.3656884,0.00018808,2]
[322595048,1713098409130,210.74,0.00016712,2]
[322595049,1713098411896,323.54057448,0.00018808,2]
[322595050,1713098412874,865.36661426,0.00018808,2]
[322595051,1713098414847,200.67191675,0.00018808,2]
[322595052,1713098417132,1438.13367358,0.00018808,2]
[322595053,1713098417153,556.96419971,0.00018808,2]
[322595054,1713098418410,185.87047986,0.00018808,2]
[322595055,1713098421726,3257.16532043,0.00018808,2]
[322595056,1713098421754,1808.03305344,0.00018808,2]
[322595057,1713098422040,952.68711223,0.00017868,2]
[322595058,1713098427441,365.3656884,0.00018808,2]